[Event "Late-Titled-Tuesday-Blitz-January-30-2024"]
[Site "Chess.com"]
[Date "2024.01.30"]
[Round "3"]
[White "wild3000"]
[Black "DraningWaterHi"]
[Result "0-1"]
[WhiteElo "2344"]
[BlackElo "2111"]
[TimeControl "180+1"]
[EndTime "14:26:37 PST"]
[Termination "DraningWaterHi won on time"]

1. d4 {[%clk 0:02:14.7]} 1... Nf6 {[%clk 0:02:57.1]} 2. Nf3 {[%clk 0:02:14.6]}
2... d5 {[%clk 0:02:56.1]} 3. e3 {[%clk 0:02:13.9]} 3... e6 {[%clk 0:02:56]} 4.
c4 {[%clk 0:02:14.8]} 4... Be7 {[%clk 0:02:54.8]} 5. Nc3 {[%clk 0:02:15.7]} 5...
c6 {[%clk 0:02:54.4]} 6. b3 {[%clk 0:02:15.5]} 6... Nbd7 {[%clk 0:02:54.4]} 7.
Bb2 {[%clk 0:02:15.9]} 7... O-O {[%clk 0:02:54.1]} 8. Bd3 {[%clk 0:02:16]} 8...
a5 {[%clk 0:02:55]} 9. a3 {[%clk 0:02:15.8]} 9... Re8 {[%clk 0:02:51.7]} 10. O-O
{[%clk 0:02:15.4]} 10... Nf8 {[%clk 0:02:51.3]} 11. Ne5 {[%clk 0:02:15.1]} 11...
Ng6 {[%clk 0:02:50.8]} 12. f4 {[%clk 0:02:14.6]} 12... Bd6 {[%clk 0:02:49.5]}
13. c5 {[%clk 0:02:14.5]} 13... Bc7 {[%clk 0:02:49.6]} 14. b4 {[%clk 0:02:14.6]}
14... Nd7 {[%clk 0:02:46.8]} 15. b5 {[%clk 0:02:13.6]} 15... Ngxe5 {[%clk
0:02:45.4]} 16. fxe5 {[%clk 0:02:13.7]} 16... Qg5 {[%clk 0:02:44.5]} 17. Qf3
{[%clk 0:02:13.3]} 17... f6 {[%clk 0:02:43.6]} 18. exf6 {[%clk 0:02:09.9]} 18...
Nxf6 {[%clk 0:02:44.5]} 19. g3 {[%clk 0:01:59.9]} 19... Bd7 {[%clk 0:02:41.8]}
20. b6 {[%clk 0:01:59.4]} 20... Bb8 {[%clk 0:02:41.9]} 21. a4 {[%clk 0:01:56.6]}
21... Rf8 {[%clk 0:02:40]} 22. Qe2 {[%clk 0:01:50.8]} 22... e5 {[%clk
0:02:39.9]} 23. Rf2 {[%clk 0:01:22.1]} 23... e4 {[%clk 0:02:34.4]} 24. Bc2
{[%clk 0:01:17.7]} 24... h5 {[%clk 0:02:33]} 25. Raf1 {[%clk 0:01:16.8]} 25...
h4 {[%clk 0:02:32.2]} 26. Rxf6 {[%clk 0:00:57.3]} 26... Rxf6 {[%clk 0:02:31.6]}
27. Rxf6 {[%clk 0:00:56.7]} 27... gxf6 {[%clk 0:02:32.2]} 28. Nxe4 {[%clk
0:00:26.7]} 28... dxe4 {[%clk 0:02:30.2]} 29. Bb3+ {[%clk 0:00:23.9]} 29... Kg7
{[%clk 0:02:29.4]} 30. Qc4 {[%clk 0:00:23.8]} 30... Qxe3+ {[%clk 0:02:24.7]} 31.
Kg2 {[%clk 0:00:16.5]} 31... h3+ {[%clk 0:02:22.9]} 32. Kf1 {[%clk 0:00:15.4]}
32... Qd3+ {[%clk 0:02:22]} 33. Qxd3 {[%clk 0:00:14.6]} 33... exd3 {[%clk
0:02:22.9]} 34. Ke1 {[%clk 0:00:14.3]} 34... Bc8 {[%clk 0:02:21.1]} 35. Bc3
{[%clk 0:00:12.5]} 35... Bxg3+ {[%clk 0:02:21.2]} 36. hxg3 {[%clk 0:00:12.1]}
36... h2 {[%clk 0:02:22.1]} 37. Kd2 {[%clk 0:00:10.9]} 37... h1=Q {[%clk
0:02:23]} 38. Kxd3 {[%clk 0:00:10.8]} 38... Bf5+ {[%clk 0:02:22.6]} 39. Kd2
{[%clk 0:00:10]} 39... Re8 {[%clk 0:02:22.6]} 0-1

[Event "Late-Titled-Tuesday-Blitz-January-30-2024"]
[Site "Chess.com"]
[Date "2024.01.30"]
[Round "3"]
[White "arenal72"]
[Black "RichardShtivelband"]
[Result "1-0"]
[WhiteElo "2562"]
[BlackElo "2313"]
[TimeControl "180+1"]
[EndTime "14:26:39 PST"]
[Termination "arenal72 won by resignation"]

1. Nf3 {[%clk 0:03:00.9]} 1... d5 {[%clk 0:02:58.7]} 2. g3 {[%clk 0:03:00.8]}
2... c5 {[%clk 0:02:56.8]} 3. Bg2 {[%clk 0:03:01.1]} 3... Nc6 {[%clk 0:02:56.9]}
4. O-O {[%clk 0:02:52.7]} 4... e5 {[%clk 0:02:55.9]} 5. d3 {[%clk 0:02:45.2]}
5... Nf6 {[%clk 0:02:54.6]} 6. e4 {[%clk 0:02:43.3]} 6... Be7 {[%clk 0:02:51.9]}
7. exd5 {[%clk 0:02:38.8]} 7... Nxd5 {[%clk 0:02:50]} 8. Re1 {[%clk 0:02:39.7]}
8... f6 {[%clk 0:02:48.1]} 9. Nc3 {[%clk 0:02:29.2]} 9... Nxc3 {[%clk
0:02:46.6]} 10. bxc3 {[%clk 0:02:30.1]} 10... O-O {[%clk 0:02:45.8]} 11. c4
{[%clk 0:02:28.6]} 11... Bg4 {[%clk 0:02:41.1]} 12. h3 {[%clk 0:02:26.5]} 12...
Bh5 {[%clk 0:02:39.9]} 13. Qd2 {[%clk 0:02:19.3]} 13... Qc7 {[%clk 0:02:35.4]}
14. Nh4 {[%clk 0:02:16.4]} 14... f5 {[%clk 0:02:26.4]} 15. Bb2 {[%clk
0:01:59.6]} 15... Bxh4 {[%clk 0:02:24.1]} 16. gxh4 {[%clk 0:02:00.5]} 16... Rae8
{[%clk 0:02:21.9]} 17. Qg5 {[%clk 0:01:58.1]} 17... g6 {[%clk 0:02:16]} 18. Bxc6
{[%clk 0:01:53.2]} 18... bxc6 {[%clk 0:02:07.5]} 19. Re3 {[%clk 0:01:48.2]}
19... Re7 {[%clk 0:01:56.9]} 20. Rae1 {[%clk 0:01:45.7]} 20... Rfe8 {[%clk
0:01:57]} 21. f4 {[%clk 0:01:43.3]} 21... e4 {[%clk 0:01:26.3]} 22. dxe4 {[%clk
0:01:38]} 22... fxe4 {[%clk 0:01:25.8]} 23. Rg3 {[%clk 0:01:31.3]} 23... Bf3
{[%clk 0:01:13.4]} 24. Qf6 {[%clk 0:01:19.9]} 24... Rf8 {[%clk 0:01:07]} 25.
Qh8+ {[%clk 0:01:10.1]} 25... Kf7 {[%clk 0:01:06.3]} 26. Qxh7+ {[%clk 0:01:08]}
26... Ke8 {[%clk 0:01:05.7]} 27. Qxg6+ {[%clk 0:01:08.2]} 27... Kd8 {[%clk
0:01:05.1]} 28. Be5 {[%clk 0:01:05.4]} 28... Rxe5 {[%clk 0:01:00.7]} 29. fxe5
{[%clk 0:01:06.3]} 29... Qxe5 {[%clk 0:01:00.5]} 30. Qg5+ {[%clk 0:01:05.8]} 1-0

[Event "Late-Titled-Tuesday-Blitz-January-30-2024"]
[Site "Chess.com"]
[Date "2024.01.30"]
[Round "3"]
[White "Yaacovn"]
[Black "joksijoksi"]
[Result "1-0"]
[WhiteElo "2817"]
[BlackElo "2525"]
[TimeControl "180+1"]
[EndTime "14:26:49 PST"]
[Termination "Yaacovn won by resignation"]

1. d4 {[%clk 0:02:54.7]} 1... Nf6 {[%clk 0:02:54.4]} 2. e3 {[%clk 0:02:54.5]}
2... c5 {[%clk 0:02:53.6]} 3. c3 {[%clk 0:02:40.5]} 3... b6 {[%clk 0:02:51]} 4.
f4 {[%clk 0:02:40.2]} 4... Bb7 {[%clk 0:02:50.2]} 5. Nf3 {[%clk 0:02:40.7]} 5...
d6 {[%clk 0:02:47.5]} 6. Bd3 {[%clk 0:02:40.8]} 6... g6 {[%clk 0:02:46.5]} 7.
O-O {[%clk 0:02:40.8]} 7... Bg7 {[%clk 0:02:46.6]} 8. f5 {[%clk 0:02:41.4]} 8...
O-O {[%clk 0:02:46.2]} 9. Qe1 {[%clk 0:02:41]} 9... Nbd7 {[%clk 0:02:44.8]} 10.
Qh4 {[%clk 0:02:41.1]} 10... e5 {[%clk 0:02:32.7]} 11. fxe6 {[%clk 0:02:39.9]}
11... fxe6 {[%clk 0:02:31.3]} 12. Nbd2 {[%clk 0:02:40.4]} 12... Qe7 {[%clk
0:02:23.7]} 13. e4 {[%clk 0:02:38.1]} 13... cxd4 {[%clk 0:02:20.5]} 14. cxd4
{[%clk 0:02:38.2]} 14... e5 {[%clk 0:02:20.4]} 15. Bc4+ {[%clk 0:02:26.5]} 15...
Kh8 {[%clk 0:02:19.9]} 16. Ng5 {[%clk 0:02:27]} 16... Nh5 {[%clk 0:01:37.8]} 17.
Rf7 {[%clk 0:02:18.2]} 17... Qe8 {[%clk 0:01:22.8]} 18. g4 {[%clk 0:02:15.9]}
18... Nhf6 {[%clk 0:01:16.7]} 19. Be6 {[%clk 0:01:52]} 19... h6 {[%clk
0:01:02.6]} 20. Nc4 {[%clk 0:01:42.4]} 20... exd4 {[%clk 0:00:56.4]} 21. Nxd6
{[%clk 0:01:40.7]} 21... Qb8 {[%clk 0:00:52.1]} 22. Rxd7 {[%clk 0:01:05.7]}
22... Nxd7 {[%clk 0:00:46.3]} 23. Ndf7+ {[%clk 0:01:03.9]} 23... Rxf7 {[%clk
0:00:44.4]} 24. Nxf7+ {[%clk 0:01:04]} 24... Kh7 {[%clk 0:00:44]} 25. Ng5+
{[%clk 0:00:58]} 25... Kh8 {[%clk 0:00:43.3]} 26. Nf7+ {[%clk 0:00:58.4]} 26...
Kh7 {[%clk 0:00:43.5]} 27. Bxh6 {[%clk 0:00:59.1]} 1-0

[Event "Late-Titled-Tuesday-Blitz-January-30-2024"]
[Site "Chess.com"]
[Date "2024.01.30"]
[Round "3"]
[White "crescentmoon2411"]
[Black "SchmakAttack"]
[Result "1-0"]
[WhiteElo "3017"]
[BlackElo "2743"]
[TimeControl "180+1"]
[EndTime "14:26:51 PST"]
[Termination "crescentmoon2411 won by resignation"]

1. d4 {[%clk 0:03:00]} 1... d5 {[%clk 0:02:58.6]} 2. c4 {[%clk 0:02:59.6]} 2...
e6 {[%clk 0:02:59]} 3. Nc3 {[%clk 0:02:59.4]} 3... c6 {[%clk 0:02:59.1]} 4. e3
{[%clk 0:02:57.7]} 4... f5 {[%clk 0:02:58.3]} 5. Nf3 {[%clk 0:02:46.6]} 5... Nf6
{[%clk 0:02:57.9]} 6. Bd3 {[%clk 0:02:40.9]} 6... Bd6 {[%clk 0:02:56.1]} 7. Qc2
{[%clk 0:02:32.7]} 7... Ne4 {[%clk 0:02:49.4]} 8. Nd2 {[%clk 0:02:19.2]} 8...
O-O {[%clk 0:02:39.4]} 9. g3 {[%clk 0:02:17.2]} 9... Nd7 {[%clk 0:02:04.8]} 10.
f3 {[%clk 0:02:06.3]} 10... Nxc3 {[%clk 0:02:02.9]} 11. bxc3 {[%clk 0:02:04.1]}
11... g6 {[%clk 0:01:32.8]} 12. O-O {[%clk 0:01:47.9]} 12... b6 {[%clk
0:01:22.7]} 13. e4 {[%clk 0:01:42]} 13... f4 {[%clk 0:01:07.3]} 14. e5 {[%clk
0:01:40]} 14... Bxe5 {[%clk 0:00:54.8]} 15. dxe5 {[%clk 0:01:38.6]} 15... Nxe5
{[%clk 0:00:55.7]} 16. Be2 {[%clk 0:01:36.5]} 16... c5 {[%clk 0:00:49.3]} 17.
cxd5 {[%clk 0:01:26.7]} 17... exd5 {[%clk 0:00:50.2]} 18. Nb3 {[%clk 0:01:26.5]}
18... Qg5 {[%clk 0:00:33.2]} 19. Bxf4 {[%clk 0:01:13.7]} 19... Rxf4 {[%clk
0:00:32.2]} 20. Qd2 {[%clk 0:01:14.2]} 20... Rg4 {[%clk 0:00:20.2]} 21. fxg4
{[%clk 0:01:11.1]} 1-0

[Event "Late-Titled-Tuesday-Blitz-January-30-2024"]
[Site "Chess.com"]
[Date "2024.01.30"]
[Round "3"]
[White "DefiantChair"]
[Black "Mahan_83"]
[Result "1-0"]
[WhiteElo "2608"]
[BlackElo "2767"]
[TimeControl "180+1"]
[EndTime "14:26:56 PST"]
[Termination "DefiantChair won by resignation"]

1. e4 {[%clk 0:03:00.9]} 1... c5 {[%clk 0:02:59.5]} 2. Nf3 {[%clk 0:03:00.7]}
2... d6 {[%clk 0:02:59.4]} 3. d4 {[%clk 0:03:01.3]} 3... cxd4 {[%clk 0:02:59.5]}
4. Nxd4 {[%clk 0:03:02.2]} 4... Nf6 {[%clk 0:02:59.6]} 5. Nc3 {[%clk 0:03:03]}
5... Nc6 {[%clk 0:02:59.9]} 6. Bg5 {[%clk 0:03:03.4]} 6... e6 {[%clk 0:02:57.8]}
7. Qd2 {[%clk 0:03:03.4]} 7... a6 {[%clk 0:02:58]} 8. O-O-O {[%clk 0:03:03]}
8... Bd7 {[%clk 0:02:58]} 9. f4 {[%clk 0:03:02.8]} 9... Be7 {[%clk 0:02:56.9]}
10. Bxf6 {[%clk 0:02:59.2]} 10... gxf6 {[%clk 0:02:53.7]} 11. f5 {[%clk
0:02:49.9]} 11... Qa5 {[%clk 0:02:24.9]} 12. Kb1 {[%clk 0:02:45.5]} 12... O-O-O
{[%clk 0:02:03.2]} 13. g3 {[%clk 0:02:42.6]} 13... Kb8 {[%clk 0:01:59.3]} 14.
Bh3 {[%clk 0:02:34.8]} 14... e5 {[%clk 0:01:31.2]} 15. Nb3 {[%clk 0:02:33.7]}
15... Qb6 {[%clk 0:01:23.5]} 16. Nd5 {[%clk 0:02:33.4]} 16... Qa7 {[%clk
0:01:01.6]} 17. Nxe7 {[%clk 0:01:49.7]} 17... Ka8 {[%clk 0:00:57.8]} 18. Nd5
{[%clk 0:01:45.1]} 18... Bc8 {[%clk 0:00:52]} 19. Nxf6 {[%clk 0:01:43.4]} 19...
h5 {[%clk 0:00:49.4]} 20. Nd5 {[%clk 0:01:43.8]} 20... h4 {[%clk 0:00:48.8]} 21.
g4 {[%clk 0:01:43.3]} 21... Kb8 {[%clk 0:00:47.7]} 22. Qe3 {[%clk 0:01:42.8]}
22... Qxe3 {[%clk 0:00:43.3]} 23. Nxe3 {[%clk 0:01:43.7]} 23... f6 {[%clk
0:00:41.2]} 24. Nd5 {[%clk 0:01:43.9]} 24... Rh6 {[%clk 0:00:40.4]} 25. Rhg1
{[%clk 0:01:43.3]} 25... Rg8 {[%clk 0:00:40.1]} 26. Bf1 {[%clk 0:01:42.5]} 26...
h3 {[%clk 0:00:38.4]} 27. Rg3 {[%clk 0:01:42.1]} 27... Rh4 {[%clk 0:00:38.5]}
28. Bxh3 {[%clk 0:01:41.6]} 28... Rgh8 {[%clk 0:00:38.5]} 29. Bg2 {[%clk
0:01:38.4]} 29... Rxh2 {[%clk 0:00:39.4]} 30. Nxf6 {[%clk 0:01:38.4]} 30... Nd4
{[%clk 0:00:36.1]} 31. Nxd4 {[%clk 0:01:38]} 31... exd4 {[%clk 0:00:37]} 32. g5
{[%clk 0:01:38]} 32... Rf8 {[%clk 0:00:28.3]} 33. g6 {[%clk 0:01:37.6]} 33... d3
{[%clk 0:00:25.1]} 34. cxd3 {[%clk 0:01:37]} 1-0

[Event "Late-Titled-Tuesday-Blitz-January-30-2024"]
[Site "Chess.com"]
[Date "2024.01.30"]
[Round "3"]
[White "Hui_Li_Macau"]
[Black "GlavkonVVS"]
[Result "0-1"]
[WhiteElo "2328"]
[BlackElo "2567"]
[TimeControl "180+1"]
[EndTime "14:26:57 PST"]
[Termination "GlavkonVVS won by resignation"]

1. e4 {[%clk 0:01:10.3]} 1... c5 {[%clk 0:02:04.6]} 2. Nf3 {[%clk 0:01:10]} 2...
d6 {[%clk 0:02:04.4]} 3. d4 {[%clk 0:01:10.5]} 3... cxd4 {[%clk 0:02:04.8]} 4.
Nxd4 {[%clk 0:01:11.4]} 4... Nf6 {[%clk 0:02:05.4]} 5. Nc3 {[%clk 0:01:11.5]}
5... a6 {[%clk 0:02:05.8]} 6. Be2 {[%clk 0:01:11.9]} 6... e5 {[%clk 0:02:06.3]}
7. Nb3 {[%clk 0:01:12.4]} 7... Be6 {[%clk 0:02:06.2]} 8. f4 {[%clk 0:01:11.7]}
8... Qc7 {[%clk 0:02:02.3]} 9. g4 {[%clk 0:01:11.2]} 9... exf4 {[%clk
0:02:00.3]} 10. g5 {[%clk 0:01:09.9]} 10... Nfd7 {[%clk 0:02:00]} 11. Bxf4
{[%clk 0:01:10.1]} 11... Nc6 {[%clk 0:01:57.9]} 12. Bg4 {[%clk 0:01:01.1]} 12...
Nde5 {[%clk 0:01:47.5]} 13. Bxe6 {[%clk 0:00:52.1]} 13... fxe6 {[%clk
0:01:47.5]} 14. Qe2 {[%clk 0:00:41.7]} 14... g6 {[%clk 0:01:45.1]} 15. O-O-O
{[%clk 0:00:39]} 15... Bg7 {[%clk 0:01:45.1]} 16. Kb1 {[%clk 0:00:23.4]} 16...
O-O {[%clk 0:01:44.7]} 17. Bg3 {[%clk 0:00:22.7]} 17... b5 {[%clk 0:01:43.2]}
18. Qd2 {[%clk 0:00:17.4]} 18... Nc4 {[%clk 0:01:34.6]} 19. Qd3 {[%clk
0:00:16.3]} 19... Nb4 {[%clk 0:01:30.3]} 20. Qe2 {[%clk 0:00:12.8]} 20... Nxb2
{[%clk 0:01:25.5]} 21. Rd3 {[%clk 0:00:03.6]} 21... N2xd3 {[%clk 0:01:24.7]} 0-1

[Event "Late-Titled-Tuesday-Blitz-January-30-2024"]
[Site "Chess.com"]
[Date "2024.01.30"]
[Round "3"]
[White "js20000"]
[Black "BilodeauA"]
[Result "0-1"]
[WhiteElo "2767"]
[BlackElo "3025"]
[TimeControl "180+1"]
[EndTime "14:26:58 PST"]
[Termination "BilodeauA won by resignation"]

1. d4 {[%clk 0:03:00.9]} 1... d5 {[%clk 0:02:59.8]} 2. c4 {[%clk 0:03:01.1]}
2... dxc4 {[%clk 0:03:00.7]} 3. Nf3 {[%clk 0:03:00.7]} 3... a6 {[%clk
0:03:00.8]} 4. e3 {[%clk 0:02:59.7]} 4... Bg4 {[%clk 0:03:01.4]} 5. Bxc4 {[%clk
0:02:58.9]} 5... e6 {[%clk 0:03:01.8]} 6. O-O {[%clk 0:02:58.9]} 6... Nc6 {[%clk
0:03:02]} 7. h3 {[%clk 0:02:59]} 7... Bh5 {[%clk 0:03:02.5]} 8. Nc3 {[%clk
0:02:59]} 8... Nf6 {[%clk 0:03:03.2]} 9. Be2 {[%clk 0:02:58.9]} 9... Bd6 {[%clk
0:03:03.6]} 10. Nd2 {[%clk 0:02:58.1]} 10... Bxe2 {[%clk 0:02:55.1]} 11. Qxe2
{[%clk 0:02:59]} 11... e5 {[%clk 0:02:55.7]} 12. Nc4 {[%clk 0:02:53.5]} 12...
O-O {[%clk 0:02:50.9]} 13. d5 {[%clk 0:02:47.5]} 13... Ne7 {[%clk 0:02:51.1]}
14. e4 {[%clk 0:02:47.8]} 14... Ng6 {[%clk 0:02:46.7]} 15. g3 {[%clk 0:02:47.2]}
15... Nd7 {[%clk 0:02:46.9]} 16. h4 {[%clk 0:02:43.9]} 16... Ne7 {[%clk
0:02:47.1]} 17. h5 {[%clk 0:02:33.3]} 17... f5 {[%clk 0:02:47.1]} 18. h6 {[%clk
0:02:30.7]} 18... g6 {[%clk 0:02:25.5]} 19. Bg5 {[%clk 0:02:27.1]} 19... Qe8
{[%clk 0:02:25.7]} 20. Rfe1 {[%clk 0:02:11.3]} 20... Qf7 {[%clk 0:02:25.8]} 21.
exf5 {[%clk 0:02:03.2]} 21... Nxf5 {[%clk 0:02:21.1]} 22. Be3 {[%clk 0:01:53.6]}
22... Rae8 {[%clk 0:02:13.8]} 23. Rad1 {[%clk 0:01:52.5]} 23... Nf6 {[%clk
0:02:12.3]} 24. g4 {[%clk 0:01:40]} 24... Nd4 {[%clk 0:02:11.5]} 25. Qd3 {[%clk
0:01:10.7]} 25... Nf3+ {[%clk 0:02:11.4]} 26. Kh1 {[%clk 0:01:10.6]} 26... Nxe1
{[%clk 0:02:10.9]} 27. Rxe1 {[%clk 0:01:11.5]} 27... Nxg4 {[%clk 0:02:10.9]} 28.
Ne4 {[%clk 0:01:11.7]} 28... Qf3+ {[%clk 0:02:09.6]} 29. Kg1 {[%clk 0:01:11.9]}
29... Qh3 {[%clk 0:02:04.6]} 30. Ncxd6 {[%clk 0:01:09.6]} 30... Qh2+ {[%clk
0:02:04.1]} 31. Kf1 {[%clk 0:01:09.8]} 31... cxd6 {[%clk 0:01:59.5]} 32. Ke2
{[%clk 0:01:03.4]} 32... Rc8 {[%clk 0:01:51.5]} 33. Rf1 {[%clk 0:00:52]} 33...
Qh5 {[%clk 0:01:41]} 34. Kd2 {[%clk 0:00:50.9]} 34... Nh2 {[%clk 0:01:35.6]} 35.
Rb1 {[%clk 0:00:41.2]} 35... Nf3+ {[%clk 0:01:35.5]} 36. Ke2 {[%clk 0:00:40.4]}
36... Nd4+ {[%clk 0:01:27.7]} 37. Kd2 {[%clk 0:00:34.3]} 37... Rc2+ {[%clk
0:01:26.6]} 38. Qxc2 {[%clk 0:00:31.7]} 38... Qe2+ {[%clk 0:01:26.4]} 0-1

[Event "Late-Titled-Tuesday-Blitz-January-30-2024"]
[Site "Chess.com"]
[Date "2024.01.30"]
[Round "3"]
[White "Adar_07"]
[Black "dropstoneDP"]
[Result "1-0"]
[WhiteElo "2672"]
[BlackElo "3039"]
[TimeControl "180+1"]
[EndTime "14:27:09 PST"]
[Termination "Adar_07 won on time"]

1. d4 {[%clk 0:03:00.2]} 1... d5 {[%clk 0:02:49.3]} 2. c4 {[%clk 0:02:58.6]}
2... dxc4 {[%clk 0:02:48.5]} 3. Nf3 {[%clk 0:02:47.9]} 3... Nf6 {[%clk
0:02:48.4]} 4. e3 {[%clk 0:02:45.7]} 4... e6 {[%clk 0:02:48.9]} 5. Bxc4 {[%clk
0:02:45.7]} 5... c5 {[%clk 0:02:49.5]} 6. O-O {[%clk 0:02:45]} 6... Nc6 {[%clk
0:02:50.1]} 7. dxc5 {[%clk 0:02:44.2]} 7... Qxd1 {[%clk 0:02:50.8]} 8. Rxd1
{[%clk 0:02:44.2]} 8... Bxc5 {[%clk 0:02:51.7]} 9. a3 {[%clk 0:02:44.6]} 9... a6
{[%clk 0:02:51.2]} 10. b4 {[%clk 0:02:44.8]} 10... Be7 {[%clk 0:02:51.8]} 11.
Bb2 {[%clk 0:02:45.2]} 11... b5 {[%clk 0:02:51.6]} 12. Be2 {[%clk 0:02:44.9]}
12... Bb7 {[%clk 0:02:51.6]} 13. Nbd2 {[%clk 0:02:43.3]} 13... O-O {[%clk
0:02:51.5]} 14. Rac1 {[%clk 0:02:43.7]} 14... Rfd8 {[%clk 0:02:48.4]} 15. Nb3
{[%clk 0:02:43.1]} 15... Rxd1+ {[%clk 0:02:47.6]} 16. Rxd1 {[%clk 0:02:43.6]}
16... Rc8 {[%clk 0:01:49.1]} 17. Rc1 {[%clk 0:02:39.8]} 17... Nd7 {[%clk
0:01:36.5]} 18. Nfd4 {[%clk 0:02:20.5]} 18... Nxd4 {[%clk 0:00:58]} 19. Rxc8+
{[%clk 0:02:21.4]} 19... Bxc8 {[%clk 0:00:58.4]} 20. Bxd4 {[%clk 0:02:22.3]}
20... Bb7 {[%clk 0:00:52.5]} 21. Na5 {[%clk 0:02:08.9]} 21... Ba8 {[%clk
0:00:48.3]} 22. Bf3 {[%clk 0:02:02.3]} 22... Bxf3 {[%clk 0:00:47.6]} 23. gxf3
{[%clk 0:02:03.2]} 23... e5 {[%clk 0:00:41.1]} 24. Nc6 {[%clk 0:02:02.4]} 24...
exd4 {[%clk 0:00:34.9]} 25. Nxe7+ {[%clk 0:02:02.7]} 25... Kf8 {[%clk
0:00:35.5]} 26. Nd5 {[%clk 0:02:03.6]} 26... dxe3 {[%clk 0:00:34.9]} 27. fxe3
{[%clk 0:02:03.7]} 27... Ne5 {[%clk 0:00:33.7]} 28. Kg2 {[%clk 0:01:51.8]} 28...
Nc4 {[%clk 0:00:33.3]} 29. Kf2 {[%clk 0:01:48.6]} 29... Nxa3 {[%clk 0:00:20.4]}
30. Nc7 {[%clk 0:01:48.5]} 30... Ke7 {[%clk 0:00:20.5]} 31. Nxa6 {[%clk
0:01:48.7]} 31... Kd6 {[%clk 0:00:20.9]} 32. e4 {[%clk 0:01:47.1]} 32... Nc4
{[%clk 0:00:19.7]} 33. Nc5 {[%clk 0:01:42.5]} 33... f5 {[%clk 0:00:14.2]} 34.
exf5 {[%clk 0:01:42.1]} 34... Ke5 {[%clk 0:00:14.6]} 35. Ne6 {[%clk 0:01:42.4]}
1-0

[Event "Late-Titled-Tuesday-Blitz-January-30-2024"]
[Site "Chess.com"]
[Date "2024.01.30"]
[Round "3"]
[White "bn1462"]
[Black "SuanFernandes"]
[Result "0-1"]
[WhiteElo "1951"]
[BlackElo "2316"]
[TimeControl "180+1"]
[EndTime "14:27:09 PST"]
[Termination "SuanFernandes won on time"]

1. d4 {[%clk 0:03:00.9]} 1... d5 {[%clk 0:02:56.7]} 2. c4 {[%clk 0:03:00.1]}
2... e6 {[%clk 0:02:57]} 3. Nf3 {[%clk 0:02:59]} 3... Nf6 {[%clk 0:02:57.6]} 4.
Nc3 {[%clk 0:02:57.8]} 4... a6 {[%clk 0:02:57.5]} 5. c5 {[%clk 0:02:54.4]} 5...
b6 {[%clk 0:02:57.4]} 6. cxb6 {[%clk 0:02:53.8]} 6... c5 {[%clk 0:02:57.7]} 7.
Bf4 {[%clk 0:02:15.3]} 7... Qxb6 {[%clk 0:02:46]} 8. Na4 {[%clk 0:01:52.4]} 8...
Qa7 {[%clk 0:02:45.8]} 9. dxc5 {[%clk 0:01:38.4]} 9... Bxc5 {[%clk 0:02:46.1]}
10. Nxc5 {[%clk 0:01:37.8]} 10... Qxc5 {[%clk 0:02:45.8]} 11. Rc1 {[%clk
0:01:31.2]} 11... Qb4+ {[%clk 0:02:40]} 12. Bd2 {[%clk 0:01:29.8]} 12... Qb7
{[%clk 0:02:39.4]} 13. Bc3 {[%clk 0:00:58.7]} 13... Nbd7 {[%clk 0:02:34]} 14. e3
{[%clk 0:00:54.5]} 14... O-O {[%clk 0:02:33.4]} 15. Bd3 {[%clk 0:00:53.5]} 15...
Qb6 {[%clk 0:02:22.4]} 16. O-O {[%clk 0:00:50.9]} 16... Bb7 {[%clk 0:02:22.5]}
17. Ne5 {[%clk 0:00:47.6]} 17... Rfc8 {[%clk 0:02:19.1]} 18. Nxd7 {[%clk
0:00:42]} 18... Nxd7 {[%clk 0:02:18.7]} 19. Qg4 {[%clk 0:00:35.6]} 19... f6
{[%clk 0:02:02.4]} 20. Bd4 {[%clk 0:00:34.2]} 20... Qd6 {[%clk 0:01:59]} 21. Qh3
{[%clk 0:00:28.5]} 21... Nf8 {[%clk 0:01:56.7]} 22. Qg3 {[%clk 0:00:05.8]} 22...
Qxg3 {[%clk 0:01:55.5]} 23. hxg3 {[%clk 0:00:06.7]} 23... Kf7 {[%clk 0:01:50.9]}
24. Rfd1 {[%clk 0:00:05.6]} 24... g6 {[%clk 0:01:51.1]} 25. Kf1 {[%clk
0:00:05.6]} 25... e5 {[%clk 0:01:49.8]} 26. Bb6 {[%clk 0:00:04.8]} 26... Nd7
{[%clk 0:01:46.8]} 27. Ba5 {[%clk 0:00:03]} 27... Ke6 {[%clk 0:01:45.7]} 28. Ke2
{[%clk 0:00:02.8]} 28... Rxc1 {[%clk 0:01:39.6]} 29. Rxc1 {[%clk 0:00:02.6]}
29... Rc8 {[%clk 0:01:40.3]} 30. Rxc8 {[%clk 0:00:01.2]} 30... Bxc8 {[%clk
0:01:41.2]} 31. Kd2 {[%clk 0:00:01.4]} 31... Nb8 {[%clk 0:01:41.6]} 0-1

[Event "Late-Titled-Tuesday-Blitz-January-30-2024"]
[Site "Chess.com"]
[Date "2024.01.30"]
[Round "3"]
[White "JakubPulpan"]
[Black "TigrVShlyape"]
[Result "0-1"]
[WhiteElo "2706"]
[BlackElo "2935"]
[TimeControl "180+1"]
[EndTime "14:27:12 PST"]
[Termination "TigrVShlyape won by resignation"]

1. d3 {[%clk 0:02:40.5]} 1... d5 {[%clk 0:02:54.6]} 2. Nf3 {[%clk 0:02:39.1]}
2... Nf6 {[%clk 0:02:54.4]} 3. g3 {[%clk 0:02:27.9]} 3... c6 {[%clk 0:02:51.4]}
4. Nbd2 {[%clk 0:02:23.6]} 4... Bf5 {[%clk 0:02:50.1]} 5. c4 {[%clk 0:02:22.5]}
5... e6 {[%clk 0:02:49.4]} 6. Bg2 {[%clk 0:02:22]} 6... h6 {[%clk 0:02:48.1]} 7.
O-O {[%clk 0:02:13.6]} 7... Be7 {[%clk 0:02:44]} 8. Ne5 {[%clk 0:01:56.4]} 8...
O-O {[%clk 0:02:33.8]} 9. Ndf3 {[%clk 0:01:54.5]} 9... Bh7 {[%clk 0:02:29.7]}
10. Qb3 {[%clk 0:01:54]} 10... Qb6 {[%clk 0:02:27.2]} 11. Be3 {[%clk 0:01:53.9]}
11... Qa6 {[%clk 0:02:27.5]} 12. Rfc1 {[%clk 0:01:41.2]} 12... Nbd7 {[%clk
0:02:24.9]} 13. Nxd7 {[%clk 0:01:40.1]} 13... Nxd7 {[%clk 0:02:24.1]} 14. Bf4
{[%clk 0:01:28.9]} 14... Qb6 {[%clk 0:02:19.7]} 15. Qc2 {[%clk 0:01:26.6]} 15...
a5 {[%clk 0:02:17.4]} 16. Be3 {[%clk 0:01:26.3]} 16... Qa6 {[%clk 0:02:15.3]}
17. Bf4 {[%clk 0:01:20.8]} 17... a4 {[%clk 0:02:13.2]} 18. Ne5 {[%clk
0:01:19.9]} 18... Rfd8 {[%clk 0:02:07.1]} 19. Nxd7 {[%clk 0:01:19.9]} 19... Rxd7
{[%clk 0:02:06.7]} 20. c5 {[%clk 0:01:11.4]} 20... Bf6 {[%clk 0:02:01.3]} 21.
Rab1 {[%clk 0:01:08.4]} 21... e5 {[%clk 0:01:54.9]} 22. Bd2 {[%clk 0:01:06.3]}
22... e4 {[%clk 0:01:55]} 23. dxe4 {[%clk 0:01:02.1]} 23... Re8 {[%clk
0:01:48.1]} 24. Bc3 {[%clk 0:00:50.7]} 24... Bxc3 {[%clk 0:01:43.5]} 25. Qxc3
{[%clk 0:00:51.1]} 25... Bxe4 {[%clk 0:01:36.2]} 26. e3 {[%clk 0:00:48.2]} 26...
Bxb1 {[%clk 0:01:34.9]} 27. Rxb1 {[%clk 0:00:48.8]} 27... Qc4 {[%clk 0:01:27.3]}
28. Qxc4 {[%clk 0:00:41]} 28... dxc4 {[%clk 0:01:26.9]} 29. Rc1 {[%clk
0:00:41.9]} 29... Rd2 {[%clk 0:01:19.8]} 30. Rxc4 {[%clk 0:00:42.2]} 30... Rxb2
{[%clk 0:01:19.5]} 31. Rxa4 {[%clk 0:00:41.1]} 31... Rd8 {[%clk 0:01:19.9]} 32.
Be4 {[%clk 0:00:35.2]} 32... g6 {[%clk 0:01:13.6]} 0-1